bitfinex/quotes_SOLUSD_20240705
["timestamp","ask_amount","ask_price","bid_price","bid_amount"]
[1720140187457,7.9246,126.19,126.12,27.75]
[1720140187768,39.6044,126.25,126.1,390.1]
[1720140188059,39.6044,126.25,126.13,7.9282]
[1720140188227,14.82174385,126.27,126.13,390.1]
[1720140188426,7.9214,126.24,126.16,7.9258]
[1720140188658,0.1,126.29,126.16,390.1]
[1720140188969,0.1,126.29,126.19,19.8102]
[1720140189140,0.1,126.29,126.18,6.3549]
[1720140189339,7.9208,126.25,126.17,7.9257]
[1720140189863,139.63,126.28,126.13,14.1546]
[1720140190225,100.0,126.24,126.12,19.8212]
[1720140190430,19.8063,126.23,126.12,7.9288]
[1720140190626,19.8063,126.23,126.08,34.9652]
[1720140190847,39.63,126.24,126.12,19.821]
[1720140191063,0.17,126.23,126.09,39.653]
[1720140191265,0.1,126.29,126.12,15.0]
[1720140191556,7.9196,126.27,126.2,27.7323]
[1720140191728,0.1,126.29,126.17,19.8144]
[1720140191930,7.9222,126.23,126.17,19.8144]
[1720140192174,7.9222,126.23,126.08,21.37311348]
[1720140192175,7.9252,126.18,126.11,7.9289]
[1720140192356,100.0,126.27,126.08,36.37311348]
[1720140192655,7.9233,126.21,126.14,19.8182]
[1720140192837,100.1,126.29,126.15,7.9269]
[1720140193030,19.8014,126.26,126.16,7.9262]
[1720140193256,19.8014,126.26,126.14,19.8182]
[1720140193430,45.0,126.28,126.16,27.741]
[1720140193431,7.9225,126.23,126.16,27.741]
[1720140193832,7.9227,126.22,126.15,7.927]
[1720140194062,0.1,126.29,126.12,39.6419]
[1720140194363,0.1,126.29,126.15,15.0]
[1720140194555,0.1,126.29,126.16,20.17]
[1720140194778,0.1,126.29,126.18,7.9248]
[1720140195055,0.1,126.29,126.21,7.9228]
[1720140195266,0.1,126.29,126.28,7.9189]
[1720140195463,0.1,126.29,126.18,396.206]
[1720140195464,0.1,126.29,126.24,19.803]
[1720140195755,0.1,126.29,126.28,7.9189]
[1720140195977,0.1,126.29,126.24,7.9208]
[1720140196256,0.1,126.29,126.19,15.265]
[1720140196433,0.1,126.29,126.22,7.9221]
[1720140196756,0.1,126.29,126.22,7.9225]
[1720140196958,0.1,126.29,126.28,7.9189]
[1720140197179,0.1,126.29,126.27,409.8975]
[1720140197342,0.1,126.29,126.28,7.9189]
[1720140197560,0.1,126.29,126.27,390.1]
[1720140197847,0.1,126.29,126.27,398.0189]
[1720140198155,0.1,126.29,126.21,7.9233]
[1720140198459,0.1,126.29,126.21,390.1]
[1720140198644,0.1,126.29,126.28,19.7972]
[1720140198845,0.1,126.29,126.26,7.9197]
[1720140199058,0.1,126.29,126.25,27.7223]
[1720140199368,0.1,126.29,126.27,7.9193]
[1720140199543,0.1,126.29,126.28,7.9189]
[1720140199858,0.1,126.29,126.25,409.9017]
[1720140200052,0.1,126.29,126.25,390.1]
[1720140200255,0.1,126.29,126.2,390.1]
[1720140200561,0.1,126.29,126.2,398.0238]
[1720140200562,7.9196,126.27,126.2,398.0238]
[1720140200765,0.1,126.29,126.2,390.1]
[1720140200939,0.17,126.26,126.2,390.1]
[1720140201145,0.1,126.29,126.2,390.1]
[1720140201343,0.17,126.28,126.23,19.8047]
[1720140201759,0.17,126.28,126.2,390.1]
[1720140201967,19.7982,126.28,126.17,19.814]
[1720140202261,100.0,126.25,126.16,390.1]
[1720140202462,19.8049,126.24,126.16,390.1]
[1720140202673,7.924,126.2,126.16,390.1]
[1720140202870,0.17,126.23,126.13,417.8474]
[1720140203057,7.924,126.2,126.13,409.9194]
[1720140203267,7.924,126.2,126.13,417.8472]
[1720140203475,19.8085,126.21,126.1,19.8251]
[1720140203775,19.8085,126.21,126.1,390.1]
[1720140203776,100.0,126.21,126.1,390.1]
[1720140203985,0.17,126.2,126.06,390.1]
[1720140204274,7.9284,126.13,126.06,398.0321]
[1720140204481,119.8151,126.17,126.04,409.9344]
[1720140204657,119.8186,126.15,126.04,390.1]
[1720140204857,119.8186,126.15,126.01,19.8392]
[1720140204858,100.0,126.15,126.01,409.9392]
[1720140205053,7.9316,126.08,126.01,409.9392]
[1720140205371,7.9314,126.08,126.01,417.8745]
[1720140205873,100.0,126.13,126.01,390.1]
[1720140206076,7.9334,126.05,126.01,390.1]
[1720140206256,19.8266,126.1,125.97,7.9382]
[1720140206257,7.9341,126.04,125.97,7.9382]
[1720140206465,0.17,126.03,125.95,19.8484]
[1720140206974,130.3688,126.12,125.91,0.1]
[1720140207269,7.9322,126.07,126.0,7.9363]
[1720140207577,7.9316,126.08,126.01,7.9353]
[1720140207762,0.17,126.11,125.92,54.63]
[1720140208083,8.22072337,126.12,126.02,19.8376]
[1720140208280,8.22072337,126.12,126.01,7.9358]
[1720140208573,8.22072337,126.12,126.03,19.8355]
[1720140208772,7.9308,126.1,126.03,27.7701]
[1720140209093,100.0,126.08,125.92,39.63]
[1720140209374,100.0,126.08,125.93,27.7924]
[1720140209375,19.8362,126.04,125.93,27.7924]
[1720140209690,7.9375,125.99,125.93,19.852]
[1720140209969,39.63,126.06,125.95,19.8481]
[1720140210179,25.9557,126.07,125.95,19.8481]
[1720140210374,7.9371,126.0,125.92,7.9409]
[1720140210543,100.0,126.05,125.91,0.1]
[1720140210751,7.9396,125.96,125.91,0.1]
[1720140210999,19.841,126.01,125.91,0.1]
[1720140211194,7.9371,125.99,125.92,7.9413]
[1720140211363,79.2966,126.06,125.91,0.1]
[1720140211565,79.2966,126.06,125.95,7.9391]
[1720140211566,7.9359,126.01,125.95,7.9391]
[1720140211898,7.9359,126.01,125.94,7.9401]
[1720140212066,7.9359,126.01,125.94,7.9402]
[1720140212266,100.0,126.03,125.91,390.2]
[1720140212594,7.9395,125.96,125.91,390.2]
[1720140212796,59.685,126.02,125.91,0.1]
[1720140213002,7.9385,125.97,125.91,0.1]
[1720140213170,7.9385,125.97,125.91,8.0421]
[1720140213369,20.0088,126.02,125.91,0.1]
[1720140213593,7.9391,125.96,125.91,0.1]
[1720140213803,7.9372,125.99,125.92,7.9415]
[1720140214094,7.9372,125.99,125.91,19.9541]
[1720140214095,7.9379,125.98,125.91,27.8962]
[1720140214266,7.9379,125.98,125.91,27.8961]
[1720140214466,8.1073,125.99,125.92,7.9414]
[1720140214666,7.9378,125.98,125.91,34.09594874]
[1720140214893,7.9377,125.98,125.91,34.09554874]
[1720140215062,0.17,125.99,125.91,6.29984874]
[1720140215063,7.9401,125.95,125.91,6.29984874]
[1720140215267,0.17,125.99,125.91,0.1]
[1720140215470,7.9415,125.92,125.91,0.1]
[1720140215772,19.8482,125.96,125.91,0.1]
[1720140216000,7.9411,125.93,125.91,0.1]
[1720140216291,19.8433,125.99,125.91,0.1]
[1720140216499,100.0,126.03,125.91,0.1]
[1720140216796,7.9403,125.94,125.91,0.1]
[1720140216992,100.0,125.98,125.91,0.1]
[1720140217202,7.9415,125.92,125.91,0.1]
[1720140217404,8.1115,125.92,125.91,0.1]
[1720140217774,119.8427,126.0,125.91,0.1]
[1720140218081,19.8427,126.0,125.91,0.1]
[1720140218390,7.9377,125.98,125.91,19.9545]
[1720140218609,8.20990412,126.0,125.91,0.1]
[1720140218790,7.9415,125.92,125.91,0.1]
[1720140219590,8.1115,125.92,125.91,0.1]
[1720140220117,19.8575,125.9,125.81,390.2]
[1720140220290,7.9457,125.86,125.81,0.1]
[1720140220888,8.1135,125.89,125.83,7.947]
[1720140221190,7.9452,125.87,125.81,0.1]
[1720140221500,7.9458,125.86,125.81,0.1]
[1720140221715,7.9461,125.85,125.81,0.1]
[1720140221901,0.17,125.88,125.81,0.1]
[1720140222389,7.9461,125.85,125.81,0.1]
[1720140222921,7.9478,125.82,125.81,0.1]
[1720140223093,8.1178,125.82,125.81,0.1]
[1720140224915,39.7203,125.89,125.81,0.1]
[1720140225116,7.9439,125.89,125.83,7.9471]
[1720140225412,7.9455,125.86,125.81,0.1]
[1720140225624,19.8583,125.9,125.81,0.1]
[1720140225800,19.862,125.87,125.81,0.1]
[1720140226030,7.9478,125.82,125.81,0.1]
[1720140226535,7.9478,125.82,125.72,0.04713194]
[1720140226851,7.9478,125.82,125.6,100.0]
[1720140226852,7.9597,125.64,125.51,22.1296]
[1720140227143,7.9605,125.62,125.56,6.43877769]
[1720140227321,7.9597,125.64,125.54,19.9133]
[1720140227520,39.63,125.68,125.56,19.9096]
[1720140227928,0.17,125.67,125.56,27.8738]
[1720140228105,100.17,125.67,125.56,19.9096]
[1720140228309,7.9605,125.62,125.53,19.9149]
[1720140228534,7.9598,125.64,125.55,19.9111]
[1720140228736,39.63,125.68,125.55,19.9111]
[1720140228939,8.1278,125.67,125.58,19.9076]
[1720140229108,45.7297,125.71,125.6,19.9031]
[1720140229309,100.0,125.77,125.56,15.0]
[1720140229612,7.9528,125.75,125.67,7.9573]
[1720140229845,19.8747,125.79,125.66,19.8935]
[1720140230130,119.8789,125.77,125.63,49.8249]
[1720140230309,100.0,125.72,125.6,19.904]
[1720140230510,7.9599,125.63,125.56,15.0051]
[1720140230726,7.9572,125.68,125.61,8.0609]
[1720140230937,7.9583,125.66,125.61,0.1]
[1720140231138,39.63,125.7,125.61,0.1]
[1720140231139,139.63,125.7,125.61,0.1]
[1720140231306,19.896,125.66,125.61,0.1]
[1720140231511,7.9599,125.63,125.61,0.1]
[1720140231808,139.63,125.7,125.61,0.1]
[1720140232012,0.17,125.69,125.61,0.1]
[1720140232213,19.8812,125.75,125.61,0.1]
[1720140232415,7.9561,125.69,125.63,19.8985]
[1720140232615,39.63,125.72,125.61,0.1]
[1720140232840,7.9554,125.7,125.63,7.9598]
[1720140233143,176.0749,125.76,125.62,19.9003]
[1720140233323,19.8883,125.71,125.61,0.1]
[1720140233646,0.17,125.7,125.61,0.1]
[1720140233818,19.8912,125.69,125.61,0.1]
[1720140234019,7.9605,125.62,125.61,0.1]
[1720140234237,107.9605,125.62,125.61,0.1]
[1720140234443,152.9605,125.62,125.61,0.1]
[1720140234764,8.1305,125.62,125.61,0.0001]
[1720140235129,7.9594,125.64,125.61,0.0001]
[1720140235331,7.9584,125.66,125.61,0.0001]
[1720140235648,39.63,125.7,125.61,0.0001]
[1720140235939,26.3188,125.72,125.61,0.0001]
[1720140236139,100.0,125.74,125.61,0.0001]
[1720140236325,7.957,125.68,125.62,19.9003]
[1720140236516,7.9549,125.71,125.64,7.9589]
[1720140236723,8.11489006,125.74,125.64,19.8969]
[1720140236915,59.5105,125.76,125.64,19.8969]
[1720140237135,182.78051005,125.76,125.61,15.3504]
[1720140237447,7.9571,125.68,125.61,15.3504]
[1720140237746,19.8843,125.73,125.62,19.9005]
[1720140237943,7.9553,125.71,125.64,7.9592]
[1720140238129,100.0,125.73,125.62,19.9005]
[1720140238330,19.8836,125.74,125.62,19.9005]
[1720140238530,7.9543,125.72,125.65,7.9585]
[1720140238731,7.9543,125.72,125.61,15.3504]
[1720140238732,16.0690889,125.75,125.61,15.3504]
[1720140238935,7.9524,125.75,125.68,27.8472]
[1720140239132,7.9529,125.74,125.68,27.8472]
[1720140239338,100.0,125.79,125.68,27.8472]
[1720140239339,7.9523,125.75,125.68,27.8472]
[1720140239625,7.953,125.74,125.67,7.9568]
[1720140240136,7.954,125.73,125.65,19.896]
[1720140240337,100.0,125.73,125.62,7.9603]
[1720140240540,39.63,125.74,125.61,15.3504]
[1720140240745,7.9543,125.72,125.66,7.9579]
[1720140240941,7.9527,125.75,125.68,7.9562]
[1720140241154,39.63,125.82,125.66,39.7898]
[1720140241355,100.0,125.78,125.63,6.6216]
[1720140241585,7.9555,125.7,125.64,19.8975]
[1720140241742,100.0,125.76,125.63,6.6216]
[1720140242062,39.63,125.78,125.64,20.0]
[1720140242281,7.9491,125.8,125.67,39.7837]
[1720140242436,19.8653,125.85,125.73,19.8832]
[1720140242646,100.0,125.87,125.76,7.9512]
[1720140242962,59.503,125.8,125.67,19.8933]
[1720140243142,39.63,125.8,125.65,39.7908]
[1720140243475,7.9542,125.72,125.66,7.9578]
[1720140243649,7.9556,125.7,125.63,14.5814]
[1720140243851,7.9592,125.64,125.61,0.0001]
[1720140244048,7.9586,125.65,125.61,0.0001]
[1720140244251,7.9568,125.68,125.61,7.9612]
[1720140244451,139.63,125.72,125.61,0.0001]
[1720140244658,7.9575,125.67,125.61,0.0001]
[1720140244964,7.9566,125.69,125.61,19.9018]
[1720140245277,20.058,125.71,125.61,0.0001]
[1720140245475,0.17,125.7,125.61,0.0001]
[1720140245637,39.7683,125.73,125.61,0.0001]
[1720140245638,159.521,125.69,125.61,0.0001]
[1720140245834,39.63,125.69,125.61,0.0001]
[1720140246066,7.9605,125.62,125.61,0.0001]
[1720140246571,8.1305,125.62,125.61,0.0001]
[1720140246865,7.9638,125.57,125.51,0.1]
[1720140247173,7.9644,125.56,125.51,0.1]
[1720140247475,159.539,125.58,125.51,0.1]
[1720140247660,7.9668,125.52,125.51,0.1]
[1720140248468,8.1368,125.52,125.51,0.1]
[1720140248677,7.9719,125.44,125.41,0.1]
[1720140248872,19.9222,125.49,125.41,0.1]
[1720140249076,39.8,125.52,125.41,0.1]
[1720140249254,7.9708,125.46,125.41,0.1]
[1720140249460,19.9233,125.49,125.41,0.1]
[1720140249655,7.9701,125.47,125.41,0.1]
[1720140249852,59.5474,125.52,125.41,0.1]
[1720140250072,39.63,125.52,125.45,7.9712]
[1720140250383,39.63,125.52,125.41,0.1]
[1720140250384,100.0,125.6,125.49,19.9205]
[1720140250586,7.9675,125.51,125.43,7.972]
[1720140250763,39.63,125.57,125.41,0.1]
[1720140250764,39.63,125.54,125.41,0.1]
[1720140250962,7.9693,125.49,125.41,8.0732]
[1720140251168,7.9699,125.48,125.41,0.1]
[1720140251388,7.9693,125.49,125.41,0.1]
[1720140251686,39.63,125.58,125.47,19.9246]
[1720140251853,7.9673,125.52,125.44,7.9718]
[1720140252056,39.63,125.58,125.48,7.9688]
[1720140252311,7.9658,125.54,125.47,27.8932]
[1720140252459,7.9649,125.56,125.47,19.9237]
[1720140252657,7.9637,125.57,125.5,7.9679]
[1720140252877,39.63,125.58,125.48,7.9692]
[1720140253092,39.63,125.58,125.46,19.9261]
[1720140253291,100.0,125.52,125.41,0.1]
[1720140253582,19.9204,125.5,125.41,0.1]
[1720140253779,7.97,125.47,125.41,0.1]
[1720140253954,7.9692,125.49,125.42,7.973]
[1720140254160,28.04817129,125.52,125.41,28.0072]
[1720140254161,7.9694,125.48,125.41,28.0072]
[1720140254359,8.12835968,125.51,125.44,19.9287]
[1720140254557,39.63,125.58,125.41,390.2]
[1720140254762,139.63,125.58,125.41,390.2]
[1720140254981,100.0,125.54,125.41,0.1]
[1720140255167,8.12736442,125.57,125.41,0.1]
[1720140255168,7.9708,125.46,125.41,0.1]
[1720140255366,7.9719,125.44,125.41,0.1]
[1720140255574,39.63,125.5,125.41,0.1]
[1720140255756,7.9687,125.5,125.42,7.9731]
[1720140255959,159.5472,125.52,125.41,0.1]
[1720140256175,0.17,125.51,125.41,0.1]
[1720140256489,7.9701,125.47,125.41,0.1]
[1720140256695,119.9209,125.5,125.41,0.1]
[1720140256910,7.9714,125.45,125.41,0.1]
[1720140257078,7.9707,125.46,125.41,0.1]
[1720140257280,0.17,125.49,125.41,0.1]
[1720140257481,39.63,125.52,125.41,0.1]
[1720140257704,39.63,125.52,125.42,19.9323]
[1720140258197,7.9723,125.44,125.41,0.1]
[1720140258378,139.63,125.47,125.41,0.1]
[1720140258592,7.9732,125.42,125.41,0.1]
[1720140259199,8.1432,125.42,125.41,0.1]
[1720140259716,47.6027,125.43,125.41,0.1]
[1720140259876,59.5558,125.47,125.41,0.1]
[1720140259877,7.9732,125.42,125.41,0.1]
[1720140260212,7.9776,125.35,125.34,0.04727483]
[1720140260390,19.9364,125.4,125.34,0.04727483]
[1720140260707,7.977,125.36,125.34,0.04727483]
[1720140260888,7.9776,125.35,125.34,0.04727483]
[1720140261420,7.9795,125.32,125.31,0.1]
[1720140261584,39.885,125.37,125.31,0.1]
[1720140261792,7.9795,125.32,125.31,0.1]
[1720140262511,8.1495,125.32,125.31,0.1]
[1720140263180,7.9791,125.33,125.31,0.1]
[1720140263483,39.63,125.4,125.31,0.1]
[1720140263684,19.9373,125.4,125.31,0.1]
[1720140263997,7.9783,125.34,125.31,0.1]
[1720140264201,119.937,125.4,125.31,0.1]
[1720140264614,39.63,125.42,125.34,19.9445]
[1720140264906,139.8645,125.43,125.31,0.1]
[1720140265203,19.9359,125.41,125.31,0.1]
[1720140265411,108.13087013,125.42,125.31,0.1]
[1720140265718,7.9764,125.37,125.31,0.1]
[1720140266009,8.13087013,125.42,125.32,7.9795]
[1720140266221,39.63,125.46,125.31,0.1]
[1720140266383,7.9727,125.43,125.35,19.9437]
[1720140266592,7.9724,125.44,125.36,7.9765]
[1720140266804,7.9714,125.45,125.38,7.9756]
[1720140266995,19.9246,125.48,125.37,19.9402]
[1720140267195,7.9713,125.45,125.38,7.9752]
[1720140267397,7.9708,125.46,125.39,7.975]
[1720140267906,8.13454891,125.51,125.43,7.9724]
[1720140268219,39.63,125.52,125.38,6.1663]
[1720140268512,7.9688,125.49,125.42,7.9731]
[1720140268713,47.76452938,125.52,125.41,19.9338]
[1720140269025,100.0,125.49,125.38,26.1051]
[1720140269197,7.9732,125.42,125.37,16.6247]
[1720140269384,19.9284,125.45,125.37,16.6247]
[1720140269695,19.9284,125.45,125.34,19.9449]
[1720140269898,59.5539,125.48,125.36,19.941]
[1720140270209,100.0,125.44,125.3,16.6247]
[1720140270388,19.9384,125.39,125.3,16.6247]
[1720140270582,19.9384,125.39,125.27,26.1227]
[1720140270796,0.17,125.38,125.27,26.1227]
[1720140271005,19.9416,125.37,125.24,16.6247]
[1720140271197,119.9367,125.4,125.28,19.9543]
[1720140271401,7.9795,125.32,125.25,19.9595]
[1720140271601,100.0,125.37,125.24,16.6247]
[1720140271806,7.9795,125.32,125.24,16.6247]
[1720140272018,8.1495,125.32,125.24,16.6247]
[1720140272812,39.8844,125.37,125.24,19.9614]
[1720140273003,7.9795,125.32,125.24,19.9614]
[1720140273195,7.9795,125.32,125.22,6.1663]
[1720140273415,8.1495,125.32,125.22,6.1663]
[1720140273710,7.9842,125.25,125.21,0.1]
[1720140273909,0.17,125.32,125.21,0.1]
[1720140274211,100.0,125.34,125.23,19.9619]
[1720140274434,7.9806,125.31,125.21,20.065]
[1720140274721,39.63,125.37,125.25,19.9589]
[1720140274893,7.9771,125.36,125.28,7.9818]
[1720140275238,7.9774,125.36,125.28,19.9551]
[1720140275517,39.63,125.38,125.21,0.1]
[1720140275728,100.0,125.37,125.21,0.1]
[1720140275888,19.9458,125.34,125.21,20.0659]
[1720140276084,7.9801,125.32,125.24,19.9616]
[1720140276319,0.17,125.31,125.23,7.9852]
[1720140276485,7.98,125.32,125.21,0.1]
[1720140276684,7.979,125.33,125.25,7.9839]
[1720140276883,0.17,125.34,125.23,19.9621]
[1720140277114,39.63,125.38,125.22,39.9282]
[1720140277311,7.9763,125.38,125.3,7.9802]
[1720140277513,39.63,125.42,125.3,6.6408]
[1720140277687,26.0265,125.47,125.3,6.6408]
[1720140277889,7.9728,125.43,125.35,7.9773]
[1720140278090,19.9297,125.45,125.3,46.5448]
[1720140278327,79.4822,125.47,125.31,19.95]
[1720140278328,7.9751,125.39,125.31,19.95]
[1720140278624,119.9372,125.4,125.24,6.6408]
[1720140278794,7.9795,125.33,125.25,7.9839]
[1720140278987,7.9815,125.29,125.23,15.2095]
[1720140279194,19.9487,125.33,125.21,20.0661]
[1720140279394,7.9827,125.28,125.21,0.1]
[1720140279608,0.17,125.32,125.21,0.1]
[1720140279830,0.17,125.32,125.21,8.0865]
[1720140279831,7.9821,125.28,125.21,8.0865]
[1720140279989,7.9813,125.3,125.21,0.1]
[1720140280193,19.9462,125.34,125.21,0.1]
[1720140280387,19.9462,125.34,125.22,19.9639]
[1720140280724,100.0,125.33,125.21,0.1]
[1720140280897,7.9813,125.3,125.22,7.9857]
[1720140281091,7.9798,125.32,125.23,19.9622]
[1720140281293,7.9789,125.34,125.25,19.9586]
[1720140281494,7.9788,125.34,125.27,7.9826]
[1720140281798,108.17253582,125.38,125.21,0.1]
[1720140282005,108.17253582,125.38,125.24,19.9605]
[1720140282006,19.9431,125.36,125.24,19.9605]
[1720140283011,8.17253582,125.38,125.26,19.9576]
[1720140283208,8.17253582,125.38,125.21,0.1]
[1720140283209,7.9814,125.3,125.23,19.9626]
[1720140283409,7.9809,125.3,125.23,7.9852]
[1720140283627,19.9461,125.34,125.21,20.0651]
[1720140283823,7.9809,125.3,125.23,27.9471]
[1720140284000,19.9414,125.37,125.25,7.984]
[1720140284200,7.9805,125.31,125.24,7.9841]
[1720140284400,7.9791,125.33,125.26,7.9833]
[1720140284721,19.9414,125.37,125.26,7.9833]
[1720140284931,0.17,125.36,125.25,19.9589]
[1720140285219,7.9813,125.3,125.21,0.1]
[1720140285418,100.0,125.33,125.21,0.1]
[1720140285630,7.9808,125.31,125.21,0.1]
[1720140285806,0.17,125.32,125.23,7.9851]
[1720140286011,7.9808,125.3,125.23,7.9851]
[1720140286318,7.9808,125.31,125.24,7.9846]
[1720140286503,7.9796,125.32,125.25,7.9835]
[1720140286704,7.9787,125.34,125.27,7.9826]
[1720140287118,7.9778,125.35,125.28,7.9819]
[1720140287314,8.17253582,125.38,125.24,39.9212]
[1720140287519,7.9764,125.37,125.3,27.9313]
[1720140287721,7.9785,125.34,125.28,7.9819]
[1720140288043,7.9789,125.33,125.27,27.9385]
[1720140288212,7.9796,125.32,125.24,59.8817]
[1720140288521,8.16993944,125.39,125.26,19.958]
[1720140288732,8.16993944,125.39,125.28,19.9545]
[1720140288904,7.9781,125.35,125.28,27.9364]
[1720140289102,7.9781,125.35,125.29,7.9814]
[1720140289433,7.9771,125.36,125.28,19.9545]
[1720140289720,7.9771,125.36,125.29,7.9812]
[1720140290026,8.16993944,125.39,125.28,27.9364]
[1720140290027,7.9783,125.34,125.28,27.9364]
[1720140290236,7.9775,125.36,125.29,7.9812]
[1720140290407,7.9777,125.35,125.28,27.9365]
[1720140290607,19.9398,125.38,125.29,7.9813]
[1720140290803,7.9777,125.35,125.28,27.9364]
[1720140291010,7.9777,125.35,125.28,19.9545]
[1720140291323,7.9757,125.38,125.3,19.9508]
[1720140291511,7.9766,125.37,125.3,19.9508]
[1720140291718,7.9759,125.38,125.31,7.9802]
[1720140291918,7.9766,125.37,125.3,19.9508]
[1720140292125,19.9381,125.39,125.29,7.9813]
[1720140292304,7.9783,125.34,125.28,1.33404711]
[1720140292654,19.9446,125.35,125.24,7.9844]
[1720140292926,19.9446,125.35,125.2,6.39868025]
[1720140292927,7.9781,125.35,125.28,7.9821]
[1720140293102,7.9784,125.34,125.28,7.9821]
[1720140293429,7.9795,125.32,125.26,7.9833]
[1720140293606,7.9791,125.33,125.26,7.9833]
[1720140293803,7.9797,125.32,125.25,7.9839]
[1720140294007,7.9797,125.32,125.24,19.9604]
[1720140294316,7.98,125.32,125.26,19.958]
[1720140294698,7.9791,125.33,125.26,27.9412]
[1720140295135,0.17,125.35,125.26,19.958]
[1720140295136,7.9796,125.32,125.26,19.958]
[1720140295438,0.17,125.35,125.23,27.9479]
[1720140295439,7.981,125.3,125.23,27.9479]
[1720140295607,7.9821,125.29,125.21,0.1]
[1720140295804,0.17,125.35,125.21,0.1]
[1720140296027,7.9809,125.3,125.21,0.1]
[1720140296210,20.1149,125.35,125.23,7.9848]
[1720140296403,7.9815,125.29,125.22,27.9494]
[1720140296599,7.9829,125.27,125.21,0.1]
[1720140296840,7.9835,125.26,125.21,0.1]
[1720140297154,7.9834,125.26,125.21,0.1]
[1720140297428,0.17,125.28,125.21,0.1]
[1720140297740,7.9839,125.26,125.21,0.1]
[1720140297936,7.9841,125.25,125.21,0.1]
[1720140298238,0.17,125.29,125.21,0.1]
[1720140298536,7.9844,125.25,125.21,0.1]
[1720140298734,0.17,125.29,125.21,0.1]
[1720140298910,19.9556,125.28,125.21,0.1]
[1720140299229,7.9846,125.24,125.21,0.1]
[1720140299412,7.9853,125.23,125.21,0.1]
[1720140299609,7.9859,125.22,125.21,0.1]
[1720140300523,59.5877,125.27,125.21,0.1]
[1720140300737,7.9827,125.28,125.21,8.0865]
[1720140301030,39.63,125.33,125.21,0.1]
[1720140301247,100.0,125.36,125.21,15.5984]
[1720140301537,7.9816,125.29,125.23,7.9851]
[1720140301754,39.63,125.36,125.21,15.5984]
[1720140302059,7.9753,125.39,125.32,7.9794]
[1720140302344,161.82759487,125.47,125.23,6.307]
[1720140302542,7.9782,125.35,125.25,39.9179]
[1720140302844,100.0,125.43,125.32,19.948]
[1720140303015,19.9339,125.42,125.31,7.98]
[1720140303224,8.16532826,125.43,125.31,0.4929]
[1720140303523,19.9326,125.43,125.31,0.4929]
[1720140303847,8.16575255,125.45,125.31,0.4929]
[1720140304007,7.9725,125.44,125.35,19.9438]
[1720140304207,8.16575255,125.45,125.32,15.8268]
[1720140304717,7.97,125.47,125.34,6.1604]
[1720140305021,7.9714,125.45,125.38,19.938]
[1720140305231,119.9251,125.47,125.34,26.1052]
[1720140305414,19.9251,125.47,125.34,26.1052]
[1720140305615,7.9703,125.47,125.37,19.9409]
[1720140305829,7.9703,125.47,125.34,6.1604]